[Event "*** Titled Tuesday Blitz"]
[Site "Chess.com"]
[Date "2019.04.02"]
[Round "4"]
[White "Vegan4future"]
[Black "maciek_92"]
[Result "0-1"]
[WhiteElo "2496"]
[BlackElo "2677"]
[TimeControl "180+2"]
[EndTime "14:51:40 PDT"]
[Termination "maciek_92 won by resignation"]

1. Nc3 {[%clk 0:03:01.9]} 1... Nf6 {[%clk 0:02:57.7]} 2. g4 {[%clk 0:03:02.7]}
2... Nxg4 {[%clk 0:02:57.3]} 3. e4 {[%clk 0:03:03.8]} 3... d6 {[%clk 0:02:55.1]}
4. Be2 {[%clk 0:03:04.9]} 4... Nf6 {[%clk 0:02:55.5]} 5. d4 {[%clk 0:03:05.9]}
5... e5 {[%clk 0:02:49.1]} 6. Nf3 {[%clk 0:03:06.4]} 6... Nc6 {[%clk 0:02:46.9]}
7. Be3 {[%clk 0:03:06.5]} 7... Bg4 {[%clk 0:02:46.8]} 8. d5 {[%clk 0:03:04.3]}
8... Bxf3 {[%clk 0:02:47.6]} 9. Bxf3 {[%clk 0:03:06.2]} 9... Ne7 {[%clk
0:02:45.2]} 10. Qd2 {[%clk 0:03:01.6]} 10... h6 {[%clk 0:02:46]} 11. O-O-O
{[%clk 0:03:00.6]} 11... Qd7 {[%clk 0:02:46.8]} 12. Rdg1 {[%clk 0:02:55.3]}
12... Ng6 {[%clk 0:02:46.1]} 13. h4 {[%clk 0:02:53.5]} 13... a6 {[%clk
0:02:45.9]} 14. h5 {[%clk 0:02:53.7]} 14... Ne7 {[%clk 0:02:47.2]} 15. Rg3
{[%clk 0:02:24.7]} 15... c5 {[%clk 0:02:40.8]} 16. Rhg1 {[%clk 0:02:10.3]} 16...
b5 {[%clk 0:02:27]} 17. Ne2 {[%clk 0:02:07.8]} 17... b4 {[%clk 0:02:24.2]} 18.
Kb1 {[%clk 0:02:03]} 18... a5 {[%clk 0:02:24.3]} 19. Nc1 {[%clk 0:01:56.5]}
19... a4 {[%clk 0:02:24]} 20. Rh1 {[%clk 0:01:49.3]} 20... Nc8 {[%clk
0:02:18.8]} 21. Bg2 {[%clk 0:01:48]} 21... Na7 {[%clk 0:02:19]} 22. f3 {[%clk
0:01:47.5]} 22... Qb7 {[%clk 0:02:19.5]} 23. f4 {[%clk 0:01:36.4]} 23... Nd7
{[%clk 0:02:12.2]} 24. f5 {[%clk 0:01:23.7]} 24... Nf6 {[%clk 0:02:03.3]} 25.
Bf2 {[%clk 0:01:24.4]} 25... Nb5 {[%clk 0:02:00.9]} 26. Ka1 {[%clk 0:01:24.1]}
26... Rg8 {[%clk 0:01:11.3]} 27. Qe2 {[%clk 0:01:22.3]} 27... Be7 {[%clk
0:01:09.1]} 28. Bf1 {[%clk 0:01:22.4]} 28... Ra5 {[%clk 0:01:07.3]} 29. Rhg1
{[%clk 0:01:22.4]} 29... Kf8 {[%clk 0:01:01.9]} 30. Qf3 {[%clk 0:01:06.2]} 30...
Nd4 {[%clk 0:01:01.6]} 31. Bxd4 {[%clk 0:01:06.5]} 31... cxd4 {[%clk 0:01:02]}
32. Be2 {[%clk 0:01:00.8]} 32... Nh7 {[%clk 0:00:50.4]} 33. Qd3 {[%clk
0:00:48.5]} 33... Bg5 {[%clk 0:00:50.1]} 34. Bf3 {[%clk 0:00:40.4]} 34... Ke7
{[%clk 0:00:48]} 35. Ne2 {[%clk 0:00:41.2]} 35... Rc8 {[%clk 0:00:47.8]} 36.
R3g2 {[%clk 0:00:41.5]} 36... f6 {[%clk 0:00:48.5]} 37. Nxd4 {[%clk 0:00:35.7]}
37... exd4 {[%clk 0:00:47.8]} 38. Qxd4 {[%clk 0:00:37.6]} 38... a3 {[%clk
0:00:38.4]} 39. b3 {[%clk 0:00:36.4]} 39... Rac5 {[%clk 0:00:37.5]} 40. Bd1
{[%clk 0:00:36.8]} 40... Kf7 {[%clk 0:00:28.4]} 41. Rf1 {[%clk 0:00:35.6]} 41...
Nf8 {[%clk 0:00:29.4]} 42. Rh1 {[%clk 0:00:27]} 42... Nd7 {[%clk 0:00:30.1]} 43.
Rxg5 {[%clk 0:00:28.2]} 43... fxg5 {[%clk 0:00:32]} 44. f6 {[%clk 0:00:22.6]}
44... Nxf6 {[%clk 0:00:32.9]} 45. Rf1 {[%clk 0:00:22]} 45... Qe7 {[%clk
0:00:33.3]} 46. Bg4 {[%clk 0:00:22.1]} 46... Qe5 {[%clk 0:00:29.3]} 47. Be6+
{[%clk 0:00:22.8]} 47... Ke7 {[%clk 0:00:28.9]} 48. Qxe5 {[%clk 0:00:22.8]}
48... dxe5 {[%clk 0:00:30.3]} 49. Bxc8 {[%clk 0:00:22.8]} 49... Rxc8 {[%clk
0:00:31.9]} 50. Kb1 {[%clk 0:00:23.8]} 50... Nxe4 {[%clk 0:00:31.1]} 51. Re1
{[%clk 0:00:21.6]} 51... Nc3+ {[%clk 0:00:32]} 52. Ka1 {[%clk 0:00:23]} 52... e4
{[%clk 0:00:30.8]} 53. d6+ {[%clk 0:00:23.6]} 53... Kd8 {[%clk 0:00:30.6]} 54.
Rf1 {[%clk 0:00:24.1]} 54... Rc5 {[%clk 0:00:28.4]} 55. d7 {[%clk 0:00:23.7]}
55... Nb5 {[%clk 0:00:11.4]} 56. Kb1 {[%clk 0:00:22]} 56... Rd5 {[%clk
0:00:11.1]} 57. Kc1 {[%clk 0:00:21.1]} 57... Rxd7 {[%clk 0:00:11.7]} 58. Rf8+
{[%clk 0:00:21.7]} 58... Kc7 {[%clk 0:00:12.8]} 59. Re8 {[%clk 0:00:21.6]} 59...
Nd6 {[%clk 0:00:07.9]} 60. Re5 {[%clk 0:00:22.1]} 60... Rf7 {[%clk 0:00:08.8]}
61. Rc5+ {[%clk 0:00:22.7]} 61... Kd7 {[%clk 0:00:09]} 62. c3 {[%clk 0:00:24.6]}
62... Rf1+ {[%clk 0:00:09]} 63. Kd2 {[%clk 0:00:25.5]} 63... Rf2+ {[%clk
0:00:10]} 64. Ke3 {[%clk 0:00:26.9]} 64... Rxa2 {[%clk 0:00:11]} 65. cxb4 {[%clk
0:00:28.8]} 65... Rb2 {[%clk 0:00:11.9]} 66. Ra5 {[%clk 0:00:29.9]} 66... Rxb3+
{[%clk 0:00:12.2]} 67. Kd4 {[%clk 0:00:31.1]} 67... Rxb4+ {[%clk 0:00:13.4]} 68.
Ke3 {[%clk 0:00:31.3]} 68... Nc4+ {[%clk 0:00:13]} 0-1

[Event "*** Titled Tuesday Blitz"]
[Site "Chess.com"]
[Date "2019.04.02"]
[Round "4"]
[White "scrapnel"]
[Black "matiss90"]
[Result "1/2-1/2"]
[WhiteElo "2535"]
[BlackElo "2462"]
[TimeControl "180+2"]
[EndTime "14:51:45 PDT"]
[Termination "Game drawn by stalemate"]

1. Nf3 {[%clk 0:03:01.9]} 1... Nf6 {[%clk 0:03:00.9]} 2. c4 {[%clk 0:03:02.4]}
2... g6 {[%clk 0:03:01.7]} 3. d4 {[%clk 0:03:02.9]} 3... Bg7 {[%clk 0:03:02.8]}
4. g3 {[%clk 0:03:04]} 4... O-O {[%clk 0:03:04]} 5. Bg2 {[%clk 0:03:05.4]} 5...
d6 {[%clk 0:03:05.3]} 6. O-O {[%clk 0:03:05.5]} 6... a6 {[%clk 0:03:06.5]} 7.
Nc3 {[%clk 0:03:06]} 7... Nc6 {[%clk 0:03:07.8]} 8. Re1 {[%clk 0:03:01.9]} 8...
Rb8 {[%clk 0:03:06.9]} 9. Rb1 {[%clk 0:03:00.8]} 9... b5 {[%clk 0:03:07.5]} 10.
cxb5 {[%clk 0:03:01.2]} 10... axb5 {[%clk 0:03:09.4]} 11. b4 {[%clk 0:03:02.2]}
11... Bf5 {[%clk 0:03:10.5]} 12. e4 {[%clk 0:03:02.5]} 12... Bg4 {[%clk
0:03:11.6]} 13. Be3 {[%clk 0:03:00.1]} 13... e5 {[%clk 0:03:11.3]} 14. d5 {[%clk
0:02:50.9]} 14... Nd4 {[%clk 0:03:12.1]} 15. Bg5 {[%clk 0:02:23.1]} 15... h6
{[%clk 0:03:09.8]} 16. Bc1 {[%clk 0:02:22.9]} 16... Nd7 {[%clk 0:03:02.1]} 17.
Qd3 {[%clk 0:02:22.7]} 17... f5 {[%clk 0:02:49]} 18. Nh4 {[%clk 0:02:11.9]}
18... Qf6 {[%clk 0:01:47.2]} 19. f3 {[%clk 0:01:57.2]} 19... Bh5 {[%clk
0:01:44.4]} 20. Be3 {[%clk 0:01:50.8]} 20... f4 {[%clk 0:01:43.9]} 21. Bxd4
{[%clk 0:01:47]} 21... exd4 {[%clk 0:01:34.1]} 22. Ne2 {[%clk 0:01:47.7]} 22...
fxg3 {[%clk 0:01:33.7]} 23. hxg3 {[%clk 0:01:45.1]} 23... Ne5 {[%clk 0:01:32.3]}
24. Qxd4 {[%clk 0:01:45.8]} 24... Nxf3+ {[%clk 0:00:37.9]} 25. Nxf3 {[%clk
0:01:39.8]} 25... Qxf3 {[%clk 0:00:20.5]} 26. Bxf3 {[%clk 0:01:32.7]} 26...
Bxd4+ {[%clk 0:00:20.8]} 27. Nxd4 {[%clk 0:01:33.7]} 27... Bxf3 {[%clk
0:00:22.4]} 28. Ne6 {[%clk 0:01:25.6]} 28... Rf7 {[%clk 0:00:21]} 29. Rbc1
{[%clk 0:01:23.3]} 29... Ra8 {[%clk 0:00:18.3]} 30. Rc2 {[%clk 0:01:07.4]} 30...
Ra7 {[%clk 0:00:19.3]} 31. Nd4 {[%clk 0:01:06.6]} 31... Bg4 {[%clk 0:00:14.7]}
32. Nxb5 {[%clk 0:01:04.2]} 32... Ra4 {[%clk 0:00:05.1]} 33. a3 {[%clk
0:01:01.7]} 33... Bd7 {[%clk 0:00:05.5]} 34. Nxc7 {[%clk 0:00:58.6]} 34... Rxa3
{[%clk 0:00:06.7]} 35. Kh2 {[%clk 0:00:55.5]} 35... Rff3 {[%clk 0:00:06.1]} 36.
Rg1 {[%clk 0:00:53.7]} 36... h5 {[%clk 0:00:07.1]} 37. Ne6 {[%clk 0:00:49.5]}
37... Bxe6 {[%clk 0:00:08.1]} 38. dxe6 {[%clk 0:00:50.2]} 38... Kf8 {[%clk
0:00:08.8]} 39. b5 {[%clk 0:00:45.9]} 39... Ke7 {[%clk 0:00:09.5]} 40. Rb2
{[%clk 0:00:45.7]} 40... Rfb3 {[%clk 0:00:06.2]} 41. Rgb1 {[%clk 0:00:45.6]}
41... Ra2 {[%clk 0:00:06.7]} 42. Rxa2 {[%clk 0:00:45.5]} 42... Rxb1 {[%clk
0:00:07.8]} 43. Kh3 {[%clk 0:00:47]} 43... Rxb5 {[%clk 0:00:08]} 44. g4 {[%clk
0:00:43.7]} 44... hxg4+ {[%clk 0:00:07.8]} 45. Kxg4 {[%clk 0:00:45]} 45... Kxe6
{[%clk 0:00:09.1]} 46. Ra8 {[%clk 0:00:44.2]} 46... Ke5 {[%clk 0:00:07.2]} 47.
Rd8 {[%clk 0:00:42.9]} 47... Rb4 {[%clk 0:00:06.7]} 48. Re8+ {[%clk 0:00:39.9]}
48... Kf6 {[%clk 0:00:06.6]} 49. Kf3 {[%clk 0:00:39.6]} 49... g5 {[%clk
0:00:07.5]} 50. Rd8 {[%clk 0:00:40.4]} 50... Ke5 {[%clk 0:00:07.9]} 51. Re8+
{[%clk 0:00:39.3]} 51... Kf6 {[%clk 0:00:08.9]} 52. Rd8 {[%clk 0:00:40.5]} 52...
Ke7 {[%clk 0:00:10]} 53. Rg8 {[%clk 0:00:41.4]} 53... Rb3+ {[%clk 0:00:10.5]}
54. Kg4 {[%clk 0:00:41.6]} 54... Re3 {[%clk 0:00:09.4]} 55. Rxg5 {[%clk
0:00:37.2]} 55... Rxe4+ {[%clk 0:00:09.9]} 56. Kf3 {[%clk 0:00:38.4]} 56... Re6
{[%clk 0:00:06.7]} 57. Rd5 {[%clk 0:00:33.8]} 57... Kd7 {[%clk 0:00:07.2]} 58.
Rd1 {[%clk 0:00:34.1]} 58... Re5 {[%clk 0:00:06.9]} 59. Kf2 {[%clk 0:00:29.3]}
59... d5 {[%clk 0:00:07.3]} 60. Re1 {[%clk 0:00:30.4]} 60... Kd6 {[%clk
0:00:05.7]} 61. Rxe5 {[%clk 0:00:30.9]} 61... Kxe5 {[%clk 0:00:06.6]} 62. Ke3
{[%clk 0:00:32.4]} 62... d4+ {[%clk 0:00:07.7]} 63. Kd3 {[%clk 0:00:33.5]} 63...
Kd5 {[%clk 0:00:08.6]} 64. Kd2 {[%clk 0:00:34.9]} 64... Ke4 {[%clk 0:00:09.8]}
65. Ke2 {[%clk 0:00:36.1]} 65... d3+ {[%clk 0:00:11.1]} 66. Kd2 {[%clk
0:00:37.3]} 66... Kd4 {[%clk 0:00:12.4]} 67. Kd1 {[%clk 0:00:38.6]} 67... Ke3
{[%clk 0:00:13.6]} 68. Ke1 {[%clk 0:00:39.5]} 68... d2+ {[%clk 0:00:14.8]} 69.
Kd1 {[%clk 0:00:40.6]} 69... Kd3 {[%clk 0:00:16]} 1/2-1/2

[Event "*** Titled Tuesday Blitz"]
[Site "Chess.com"]
[Date "2019.04.02"]
[Round "4"]
[White "hellokostya"]
[Black "jcgs1030"]
[Result "0-1"]
[WhiteElo "2496"]
[BlackElo "2342"]
[TimeControl "180+2"]
[EndTime "14:51:47 PDT"]
[Termination "jcgs1030 won by resignation"]

1. d4 {[%clk 0:03:01.9]} 1... Nf6 {[%clk 0:02:58.8]} 2. c4 {[%clk 0:03:00.7]}
2... e6 {[%clk 0:02:57.6]} 3. Nf3 {[%clk 0:02:55.8]} 3... d5 {[%clk 0:02:58.7]}
4. Nc3 {[%clk 0:02:56.3]} 4... c5 {[%clk 0:02:59.1]} 5. cxd5 {[%clk 0:02:56]}
5... Nxd5 {[%clk 0:02:58.8]} 6. e3 {[%clk 0:02:52.7]} 6... Nc6 {[%clk
0:02:58.9]} 7. Bd3 {[%clk 0:02:34.3]} 7... cxd4 {[%clk 0:02:57.8]} 8. exd4
{[%clk 0:02:34.8]} 8... Be7 {[%clk 0:02:56.2]} 9. O-O {[%clk 0:02:35.4]} 9...
O-O {[%clk 0:02:56.8]} 10. Re1 {[%clk 0:02:36]} 10... b6 {[%clk 0:02:53.1]} 11.
a3 {[%clk 0:02:36.1]} 11... Bb7 {[%clk 0:02:53.7]} 12. Bc2 {[%clk 0:02:33.7]}
12... Bf6 {[%clk 0:02:49.4]} 13. Qd3 {[%clk 0:02:25.7]} 13... g6 {[%clk
0:02:49.8]} 14. Bh6 {[%clk 0:02:27.3]} 14... Re8 {[%clk 0:02:49.6]} 15. Rad1
{[%clk 0:02:26.4]} 15... Rc8 {[%clk 0:02:45.1]} 16. Ne4 {[%clk 0:02:21.8]} 16...
Bg7 {[%clk 0:02:38.4]} 17. Bxg7 {[%clk 0:02:17.9]} 17... Kxg7 {[%clk 0:02:39]}
18. Bb1 {[%clk 0:01:53.2]} 18... Nf6 {[%clk 0:02:36.7]} 19. Neg5 {[%clk
0:01:49.9]} 19... Qd5 {[%clk 0:02:36.9]} 20. h3 {[%clk 0:01:38.4]} 20... Ne7
{[%clk 0:02:23.3]} 21. Qe3 {[%clk 0:01:04.2]} 21... h6 {[%clk 0:02:15.6]} 22.
Nxf7 {[%clk 0:00:50.1]} 22... Kxf7 {[%clk 0:02:12.1]} 23. Qxh6 {[%clk
0:00:50.6]} 23... Qh5 {[%clk 0:02:02.4]} 24. Ng5+ {[%clk 0:00:38]} 24... Kg8
{[%clk 0:02:02.7]} 25. Qxh5 {[%clk 0:00:38.2]} 25... Nxh5 {[%clk 0:01:59.2]} 26.
Rxe6 {[%clk 0:00:33.1]} 26... Nf4 {[%clk 0:01:59.2]} 27. Rf6 {[%clk 0:00:28.4]}
27... Ne2+ {[%clk 0:01:33.3]} 28. Kh2 {[%clk 0:00:28]} 28... Rf8 {[%clk
0:01:10]} 29. Ba2+ {[%clk 0:00:21.8]} 29... Kh8 {[%clk 0:01:08.2]} 30. Nf7+
{[%clk 0:00:15.7]} 30... Kg7 {[%clk 0:01:07.1]} 31. Re6 {[%clk 0:00:16.4]} 31...
Rxf7 {[%clk 0:00:58.2]} 32. Rxe2 {[%clk 0:00:17.7]} 32... Bd5 {[%clk 0:00:58.7]}
33. Bxd5 {[%clk 0:00:18.4]} 33... Nxd5 {[%clk 0:00:59.8]} 34. g3 {[%clk
0:00:19.8]} 34... Rfc7 {[%clk 0:00:55.1]} 35. Kg2 {[%clk 0:00:20.1]} 35... Rc2
{[%clk 0:00:55.7]} 36. Rdd2 {[%clk 0:00:20.8]} 36... Rxd2 {[%clk 0:00:56.2]} 37.
Rxd2 {[%clk 0:00:22.7]} 37... g5 {[%clk 0:00:56.4]} 38. Kf3 {[%clk 0:00:22.6]}
38... Kf6 {[%clk 0:00:57.7]} 39. Ke4 {[%clk 0:00:23.3]} 39... Ke6 {[%clk
0:00:58.9]} 40. Kd3 {[%clk 0:00:24.2]} 40... Nf6 {[%clk 0:00:57.1]} 41. Re2+
{[%clk 0:00:25]} 41... Kd6 {[%clk 0:00:58.2]} 42. Re5 {[%clk 0:00:26]} 42... g4
{[%clk 0:00:59.1]} 43. Rf5 {[%clk 0:00:24.2]} 43... Ke6 {[%clk 0:01:00]} 44.
Re5+ {[%clk 0:00:23.4]} 44... Kf7 {[%clk 0:01:00.7]} 45. hxg4 {[%clk 0:00:23]}
45... Nxg4 {[%clk 0:01:02]} 46. Rf5+ {[%clk 0:00:24]} 46... Ke6 {[%clk
0:01:03.2]} 47. Rf4 {[%clk 0:00:25.6]} 47... Nf6 {[%clk 0:01:01.5]} 48. f3
{[%clk 0:00:23.5]} 48... Rc1 {[%clk 0:01:01.4]} 49. Rh4 {[%clk 0:00:22]} 49...
Rg1 {[%clk 0:01:01.6]} 50. g4 {[%clk 0:00:22.5]} 50... Rg3 {[%clk 0:01:02.4]}
51. Ke2 {[%clk 0:00:22.8]} 51... Rg2+ {[%clk 0:01:03.1]} 52. Ke3 {[%clk
0:00:23]} 52... Rxb2 {[%clk 0:01:03.9]} 53. Rh6 {[%clk 0:00:23.9]} 53... Kf7
{[%clk 0:01:04.8]} 54. g5 {[%clk 0:00:23.1]} 54... Rb3+ {[%clk 0:01:00]} 55. Kf4
{[%clk 0:00:24.1]} 55... Nd5+ {[%clk 0:00:59.4]} 56. Ke5 {[%clk 0:00:24]} 56...
Ne7 {[%clk 0:00:56.9]} 57. Rh7+ {[%clk 0:00:23]} 57... Ke8 {[%clk 0:00:56.6]}
58. f4 {[%clk 0:00:23.7]} 58... Rxa3 {[%clk 0:00:49.8]} 59. f5 {[%clk
0:00:19.5]} 59... Ra5+ {[%clk 0:00:50.5]} 60. Ke6 {[%clk 0:00:19.4]} 60... Ng8
{[%clk 0:00:23.2]} 61. f6 {[%clk 0:00:16.2]} 61... Rxg5 {[%clk 0:00:22.9]} 62.
f7+ {[%clk 0:00:13.5]} 62... Kf8 {[%clk 0:00:23.8]} 63. Rh8 {[%clk 0:00:13.3]}
63... Rg6+ {[%clk 0:00:24.4]} 64. Kd7 {[%clk 0:00:10.1]} 64... Kxf7 {[%clk
0:00:26.2]} 65. d5 {[%clk 0:00:11.4]} 65... Nf6+ {[%clk 0:00:26.2]} 66. Kc7
{[%clk 0:00:11.3]} 66... Nxd5+ {[%clk 0:00:27]} 67. Kb7 {[%clk 0:00:12.3]} 67...
a5 {[%clk 0:00:27.9]} 0-1

[Event "*** Titled Tuesday Blitz"]
[Site "Chess.com"]
[Date "2019.04.02"]
[Round "4"]
[White "Miguelito"]
[Black "Fandorine"]
[Result "1/2-1/2"]
[WhiteElo "2616"]
[BlackElo "2843"]
[TimeControl "180+2"]
[EndTime "14:51:50 PDT"]
[Termination "Game drawn - insufficient material"]

1. e4 {[%clk 0:03:01.2]} 1... e5 {[%clk 0:03:00.5]} 2. Nf3 {[%clk 0:03:01.7]}
2... Nc6 {[%clk 0:03:02.2]} 3. Bc4 {[%clk 0:03:01.5]} 3... Nf6 {[%clk
0:03:02.1]} 4. Ng5 {[%clk 0:03:00.5]} 4... Bc5 {[%clk 0:03:03]} 5. Bxf7+ {[%clk
0:02:58.5]} 5... Ke7 {[%clk 0:03:04]} 6. Bb3 {[%clk 0:02:56.9]} 6... Rf8 {[%clk
0:03:04.6]} 7. O-O {[%clk 0:02:55.2]} 7... d6 {[%clk 0:02:59.4]} 8. d3 {[%clk
0:02:15.7]} 8... Bg4 {[%clk 0:02:50.6]} 9. Nf3 {[%clk 0:02:04.6]} 9... Nd4
{[%clk 0:01:53]} 10. Nbd2 {[%clk 0:01:43.9]} 10... Qe8 {[%clk 0:01:53.8]} 11. c3
{[%clk 0:01:25]} 11... Nxf3+ {[%clk 0:01:53.1]} 12. Nxf3 {[%clk 0:01:26.9]}
12... Qh5 {[%clk 0:01:51.6]} 13. d4 {[%clk 0:01:25.3]} 13... Nxe4 {[%clk
0:01:37.2]} 14. dxc5 {[%clk 0:01:19.4]} 14... Rxf3 {[%clk 0:01:25.6]} 15. Qd5
{[%clk 0:01:15.8]} 15... Nxc5 {[%clk 0:01:20.1]} 16. Be3 {[%clk 0:01:03.6]}
16... c6 {[%clk 0:00:59.8]} 17. Qd2 {[%clk 0:00:51.4]} 17... Nxb3 {[%clk
0:00:55.7]} 18. axb3 {[%clk 0:00:52.1]} 18... Rh3 {[%clk 0:00:23.4]} 19. Bf4
{[%clk 0:00:23.4]} 19... exf4 {[%clk 0:00:20.2]} 20. gxh3 {[%clk 0:00:23.8]}
20... Be6 {[%clk 0:00:07.5]} 21. Qxf4 {[%clk 0:00:20.6]} 21... Rf8 {[%clk
0:00:07.7]} 22. Qg3 {[%clk 0:00:18.9]} 22... Qh6 {[%clk 0:00:02.6]} 23. Ra4
{[%clk 0:00:18.6]} 23... Rf6 {[%clk 0:00:03.6]} 24. Rh4 {[%clk 0:00:19.3]} 24...
Qg6 {[%clk 0:00:03.8]} 25. Qxg6 {[%clk 0:00:18.8]} 25... Rxg6+ {[%clk
0:00:05.7]} 26. Kh1 {[%clk 0:00:19.5]} 26... Bxb3 {[%clk 0:00:06.7]} 27. Rg4
{[%clk 0:00:20]} 27... Bd5+ {[%clk 0:00:07.5]} 28. Kg1 {[%clk 0:00:20.5]} 28...
a5 {[%clk 0:00:05.9]} 29. Rxg6 {[%clk 0:00:21.6]} 29... hxg6 {[%clk 0:00:07.8]}
30. f3 {[%clk 0:00:23]} 30... a4 {[%clk 0:00:06.6]} 31. Kf2 {[%clk 0:00:24.5]}
31... b5 {[%clk 0:00:08]} 32. Ke3 {[%clk 0:00:25.7]} 32... Ke6 {[%clk
0:00:09.2]} 33. Rg1 {[%clk 0:00:26.5]} 33... Kf6 {[%clk 0:00:09.1]} 34. h4
{[%clk 0:00:27.3]} 34... Bc4 {[%clk 0:00:09.4]} 35. Rd1 {[%clk 0:00:28.1]} 35...
Ke6 {[%clk 0:00:08.6]} 36. f4 {[%clk 0:00:26]} 36... c5 {[%clk 0:00:09.4]} 37.
Rg1 {[%clk 0:00:26.6]} 37... Kf6 {[%clk 0:00:10.4]} 38. Rd1 {[%clk 0:00:27.1]}
38... d5 {[%clk 0:00:11.8]} 39. Rg1 {[%clk 0:00:24.9]} 39... Bb3 {[%clk
0:00:11.1]} 40. Rg5 {[%clk 0:00:24.2]} 40... b4 {[%clk 0:00:10.9]} 41. cxb4
{[%clk 0:00:25.2]} 41... cxb4 {[%clk 0:00:12.3]} 42. Re5 {[%clk 0:00:15.2]}
42... a3 {[%clk 0:00:11.9]} 43. bxa3 {[%clk 0:00:16.3]} 43... bxa3 {[%clk
0:00:12.9]} 44. Re8 {[%clk 0:00:17.9]} 44... a2 {[%clk 0:00:09.6]} 45. Ra8
{[%clk 0:00:18.7]} 45... Bc4 {[%clk 0:00:09]} 46. h3 {[%clk 0:00:14.4]} 46...
Kf5 {[%clk 0:00:10.4]} 47. Rf8+ {[%clk 0:00:15]} 47... Ke6 {[%clk 0:00:11.7]}
48. Ra8 {[%clk 0:00:16.9]} 48... Ke7 {[%clk 0:00:12.2]} 49. Kd4 {[%clk 0:00:18]}
49... Kf6 {[%clk 0:00:13.6]} 50. Ra7 {[%clk 0:00:18.7]} 50... Kf5 {[%clk
0:00:10]} 51. Rf7+ {[%clk 0:00:19.7]} 51... Ke6 {[%clk 0:00:11.5]} 52. Ra7
{[%clk 0:00:21.6]} 52... Kf6 {[%clk 0:00:11.9]} 53. Ra8 {[%clk 0:00:22.4]} 53...
Bb3 {[%clk 0:00:12.9]} 54. Ra7 {[%clk 0:00:23.2]} 54... Bc4 {[%clk 0:00:13.9]}
55. Ra8 {[%clk 0:00:24.3]} 55... Ke6 {[%clk 0:00:14.3]} 56. Ra7 {[%clk
0:00:25.1]} 56... Kd6 {[%clk 0:00:11.5]} 57. Kc3 {[%clk 0:00:22.1]} 57... Kc5
{[%clk 0:00:11.8]} 58. Kb2 {[%clk 0:00:22.9]} 58... d4 {[%clk 0:00:10.7]} 59.
Rxg7 {[%clk 0:00:23.5]} 59... d3 {[%clk 0:00:12.1]} 60. Rxg6 {[%clk 0:00:24.4]}
60... d2 {[%clk 0:00:09.1]} 61. Rg1 {[%clk 0:00:23.9]} 61... Be2 {[%clk
0:00:09.6]} 62. h5 {[%clk 0:00:22.6]} 62... Bxh5 {[%clk 0:00:06.4]} 63. Kxa2
{[%clk 0:00:21.9]} 63... d1=Q {[%clk 0:00:07.4]} 64. Rxd1 {[%clk 0:00:22.3]}
64... Bxd1 {[%clk 0:00:09.3]} 65. h4 {[%clk 0:00:23.6]} 65... Kd5 {[%clk
0:00:10.1]} 66. f5 {[%clk 0:00:24.7]} 66... Ke5 {[%clk 0:00:11.1]} 67. h5 {[%clk
0:00:26.2]} 67... Kxf5 {[%clk 0:00:11.9]} 68. h6 {[%clk 0:00:28.1]} 68... Kg6
{[%clk 0:00:13.5]} 69. h7 {[%clk 0:00:29.7]} 69... Kxh7 {[%clk 0:00:15.2]}
1/2-1/2